fUST/lending_fUST_20250907
["ID","MTS","AMOUNT","RATE_DAILY","PERIOD"]
[383935755,1757183447081,-1452.45,0.00013698,2]
[383935756,1757183447091,-480.0,0.00013698,2]
[383935757,1757183447100,-260.836864,0.00013698,2]
[383935758,1757183447110,-480.0,0.00013698,2]
[383935759,1757183447119,-260.836856,0.00013698,2]
[383935760,1757183447131,-480.0,0.00013698,2]
[383935761,1757183447141,-480.0,0.00013698,2]
[383935762,1757183447151,-480.0,0.00013698,2]
[383935763,1757183447161,-480.0,0.00013698,2]
[383935764,1757183447171,-480.0,0.00013698,2]
[383935765,1757183447179,-174.255112,0.00013698,2]
[383935766,1757183447190,-174.255102,0.00013698,2]
[383935767,1757183447201,-480.0,0.00013698,2]
[383935768,1757183447211,-1982.95,0.00013698,2]
[383935769,1757183447222,-480.0,0.00013698,2]
[383935770,1757183447232,-480.0,0.00013698,2]
[383935771,1757183447242,-480.0,0.00013698,2]
[383935772,1757183447252,-480.0,0.00013698,2]
[383935773,1757183447262,-480.0,0.00013698,2]
[383935774,1757183447272,-480.0,0.00013698,2]
[383935775,1757183447282,-480.0,0.00013698,2]
[383935776,1757183447425,-3034.43,0.00013698,2]
[383935777,1757183447436,-991.200739,0.00013698,2]
[383935778,1757183447445,-991.200739,0.00013698,2]
[383935779,1757183447455,-991.200739,0.00013698,2]
[383935780,1757183447465,-991.200739,0.00013698,2]
[383935781,1757183447474,-480.0,0.00013698,2]
[383935782,1757183447483,-480.0,0.00013698,2]
[383935783,1757183447493,-1072.85,0.00013698,2]
[383935784,1757183447503,-991.200739,0.00013698,2]
[383935785,1757183447513,-991.200739,0.00013698,2]
[383935786,1757183447524,-803.98,0.00013698,2]
[383935787,1757183447534,-480.0,0.00013698,2]
[383935788,1757183447543,-991.200739,0.00013698,2]
[383935789,1757183447553,-991.200731,0.00013698,2]
[383935790,1757183447563,-993.17,0.00013698,2]
[383935791,1757183447573,-1029.42,0.00013698,2]
[383935792,1757183447584,-151.0,0.00013698,2]
[383935793,1757183447594,-151.0,0.00013698,2]
[383935794,1757183447604,-480.0,0.00013698,2]
[383935795,1757183447615,-480.0,0.00013698,2]
[383935796,1757183447625,-480.0,0.00013698,2]
[383935797,1757183447634,-480.0,0.00013698,2]
[383935798,1757183447643,-151.0,0.00013698,2]
[383935799,1757183447654,-151.0,0.00013698,2]
[383935800,1757183447663,-480.0,0.00013698,2]
[383935801,1757183447673,-480.0,0.00013698,2]
[383935802,1757183447682,-151.0,0.00013698,2]
[383935803,1757183447692,-151.0,0.00013698,2]
[383935804,1757183447701,-480.0,0.00013698,2]
[383935805,1757183447711,-2381.12,0.00013698,2]
[383935806,1757183447721,-151.0,0.00013698,2]
[383935807,1757183447731,-480.0,0.00013698,2]
[383935808,1757183447742,-151.0,0.00013698,2]
[383935809,1757183447751,-480.0,0.00013698,2]
[383935810,1757183447761,-5303.73,0.00013698,2]
[383935811,1757183447771,-480.0,0.00013698,2]
[383935812,1757183447782,-480.0,0.00013698,2]
[383935813,1757183447792,-151.0,0.00013698,2]
[383935814,1757183447802,-151.0,0.00013698,2]
[383935815,1757183447811,-151.0,0.00013698,2]
[383935816,1757183447822,-151.0,0.00013698,2]
[383935817,1757183447832,-480.0,0.00013698,2]
[383935818,1757183447842,-151.0,0.00013698,2]
[383935819,1757183447852,-151.0,0.00013698,2]
[383935820,1757183447863,-244.620896,0.00013698,2]
[383935821,1757183447873,-482.76293825,0.00013698,2]
[383935822,1757183447884,-481.41760078,0.00013698,2]
[383935823,1757183447895,-480.0,0.00013698,2]
[383935824,1757183447907,-480.0,0.00013698,2]
[383935825,1757183447920,-835.4,0.00013698,2]
[383935826,1757183447931,-480.0,0.00013698,2]
[383935827,1757183447941,-480.0,0.00013698,2]
[383935828,1757183447950,-481.182224,0.00013698,2]
[383935829,1757183447959,-151.0,0.00013698,2]
[383935830,1757183447969,-151.0,0.00013698,2]
[383935831,1757183447978,-151.0,0.00013698,2]
[383935832,1757183447988,-2254.59,0.00013698,2]
[383935833,1757183447999,-151.0,0.00013698,2]
[383935834,1757183448010,-1103.91,0.00013698,2]
[383935835,1757183448020,-151.0,0.00013698,2]
[383935836,1757183448030,-151.0,0.00013698,2]
[383935837,1757183448041,-480.0,0.00013698,2]
[383935838,1757183448052,-480.0,0.00013698,2]
[383935839,1757183448062,-480.0,0.00013698,2]
[383935840,1757183448073,-480.0,0.00013698,2]
[383935841,1757183448083,-151.0,0.00013698,2]
[383935842,1757183448104,-151.0,0.00013698,2]
[383935843,1757183448116,-480.0,0.00013698,2]
[383935844,1757183448128,-480.0,0.00013698,2]
[383935845,1757183448140,-480.0,0.00013698,2]
[383935846,1757183448153,-480.0,0.00013698,2]
[383935847,1757183448164,-1097.17,0.00013698,2]
[383935849,1757183448175,-480.0,0.00013698,2]
[383935851,1757183448185,-480.0,0.00013698,2]
[383935853,1757183448197,-480.0,0.00013698,2]
[383935855,1757183448207,-228.65636,0.00013698,2]
[383935857,1757183448218,-9938.28,0.00013698,2]
[383935859,1757183448228,-4804.27,0.00013698,2]
[383935861,1757183448241,-480.0,0.00013698,2]
[383935862,1757183448252,-480.0,0.00013698,2]
[383935863,1757183448262,-480.0,0.00013698,2]
[383935864,1757183448273,-159.31353032,0.00013698,2]
[383935865,1757183448283,-3763.1,0.00013698,2]
[383935866,1757183448297,-480.0,0.00013698,2]
[383935867,1757183448310,-480.0,0.00013698,2]
[383935868,1757183448320,-480.64942555,0.00013698,2]
[383935869,1757183448332,-480.0,0.00013698,2]
[383935870,1757183448342,-480.0,0.00013698,2]
[383935871,1757183448352,-480.0,0.00013698,2]
[383935872,1757183448362,-480.0,0.00013698,2]
[383935873,1757183448373,-1112.29,0.00013698,2]
[383935874,1757183448385,-994.6,0.00013698,2]
[383935875,1757183448397,-480.0,0.00013698,2]
[383935876,1757183448407,-151.0,0.00013698,2]
[383935877,1757183448418,-274.379056,0.00013698,2]
[383935878,1757183448639,-480.0,0.00013698,2]
[383935879,1757183448651,-2199.28,0.00013698,2]
[383935880,1757183448662,-188.320365,0.00013698,2]
[383935881,1757183448674,-480.0,0.00013698,2]
[383935882,1757183448684,-188.320365,0.00013698,2]
[383935883,1757183448694,-3017.37,0.00013698,2]
[383935884,1757183448705,-151.0,0.00013698,2]
[383935885,1757183448716,-188.320365,0.00013698,2]
[383935886,1757183448727,-1366.29,0.00013698,2]
[383935887,1757183448737,-265.104712,0.00013698,2]
[383935888,1757183448747,-188.320365,0.00013698,2]
[383935889,1757183448758,-657.68,0.00013698,2]
[383935890,1757183448768,-480.0,0.00013698,2]
[383935891,1757183448779,-188.320365,0.00013698,2]
[383935892,1757183448790,-480.0,0.00013698,2]
[383935893,1757183448800,-188.320365,0.00013698,2]
[383935894,1757183448811,-151.0,0.00013698,2]
[383935895,1757183448822,-151.0,0.00013698,2]
[383935896,1757183448833,-188.320365,0.00013698,2]
[383935897,1757183448844,-480.0,0.00013698,2]
[383935898,1757183448854,-188.320373,0.00013698,2]
[383935899,1757183448865,-151.0,0.00013698,2]
[383935900,1757183448876,-151.0,0.00013698,2]
[383935901,1757183448887,-151.0,0.00013698,2]
[383935902,1757183448899,-151.0,0.00013698,2]
[383935903,1757183448910,-480.0,0.00013698,2]
[383935904,1757183448923,-480.0,0.00013698,2]
[383935905,1757183448944,-500.0,0.00013698,2]
[383935906,1757183448958,-500.0,0.00013698,2]
[383935907,1757183448968,-480.0,0.00013698,2]
[383935908,1757183448978,-500.0,0.00013698,2]
[383935909,1757183448989,-500.0,0.00013698,2]
[383935910,1757183448999,-500.0,0.00013698,2]
[383935911,1757183449010,-500.0,0.00013698,2]
[383935912,1757183449020,-480.0,0.00013698,2]
[383935913,1757183449030,-480.0,0.00013698,2]
[383935914,1757183449041,-500.0,0.00013698,2]
[383935915,1757183449051,-774.86,0.00013698,2]
[383935916,1757183449061,-480.0,0.00013698,2]
[383935917,1757183449072,-1488.07,0.00013698,2]
[383935918,1757183449090,-480.0,0.00013698,2]
[383935919,1757183449101,-480.0,0.00013698,2]
[383935920,1757183449112,-548.08,0.00013698,2]
[383935921,1757183449122,-480.0,0.00013698,2]
[383935922,1757183449133,-480.0,0.00013698,2]
[383935923,1757183449144,-1049.43,0.00013698,2]
[383935924,1757183449155,-480.0,0.00013698,2]
[383935925,1757183449166,-1981.35,0.00013698,2]
[383935926,1757183449176,-268.76781147,0.00013698,2]
[383935927,1757183449186,-480.0,0.00013698,2]
[383935928,1757183449196,-480.0,0.00013698,2]
[383935929,1757183449206,-480.0,0.00013698,2]
[383935930,1757183449216,-900.37,0.00013698,2]
[383935931,1757183449226,-480.0,0.00013698,2]
[383935932,1757183449237,-330.99720856,0.00013698,2]
[383935933,1757183449247,-752.21,0.00013698,2]
[383935934,1757183449257,-734.41,0.00013698,2]
[383935935,1757183449268,-480.0,0.00013698,2]
[383935936,1757183449277,-480.0,0.00013698,2]
[383935937,1757183449287,-436.19576782,0.00013698,2]
[383935938,1757183449298,-495.54,0.00013698,2]
[383935939,1757183449312,-1099.41,0.00013698,2]
[383935940,1757183449322,-1353.57,0.00013698,2]
[383935941,1757183449332,-537.38,0.00013698,2]
[383935942,1757183449343,-480.0,0.00013698,2]
[383935943,1757183449352,-1800.69,0.00013698,2]
[383935944,1757183449362,-660.97,0.00013698,2]
[383935945,1757183449372,-480.0,0.00013698,2]
[383935946,1757183449382,-480.0,0.00013698,2]
[383935947,1757183449391,-2662.22,0.00013698,2]
[383935948,1757183449402,-480.0,0.00013698,2]
[383935949,1757183449412,-2788.35,0.00013698,2]
[383935950,1757183449422,-480.0,0.00013698,2]
[383935951,1757183449431,-539.79527703,0.00013698,2]
[383935952,1757183480450,780.0,0.00013037,2]
[383935953,1757183504089,1020.0,0.00013037,2]
[383935954,1757183670637,1135.67184273,0.00013037,2]
[383935962,1757184422303,300.61,0.00012329,2]
[383935963,1757184424970,480.0,0.0001311,2]
[383935964,1757184432766,250.51,0.00012329,2]
[383935965,1757184433476,480.0,0.0001311,2]
[383935966,1757184443540,208.76,0.00012329,2]
[383935967,1757184449052,480.0,0.0001311,2]
[383935968,1757184453986,382.72,0.00012329,2]
[383935969,1757184456874,480.0,0.0001311,2]
[383935970,1757184464449,318.93,0.00012329,2]
[383935971,1757184472573,702.847665,0.0001311,2]
[383935972,1757184474905,439.74,0.00012329,2]
[383935974,1757184480894,702.847665,0.0001311,2]
[383935975,1757184485369,366.45,0.00012329,2]
[383935976,1757184495768,305.38,0.00012329,2]
[383935977,1757184496172,702.847665,0.0001311,2]
[383935978,1757184503986,702.847665,0.0001311,2]
[383935979,1757184506165,254.48,0.00012329,2]
[383935980,1757184516629,212.07,0.00012329,2]
[383935981,1757184519693,702.847665,0.0001311,2]
[383935982,1757184527256,176.72,0.00012329,2]
[383935983,1757184528358,702.847665,0.0001311,2]
[383935984,1757184537765,883.65,0.00012329,2]
[383935985,1757184552735,702.847665,0.00013036,2]
[383935986,1757184576007,702.847665,0.00013036,2]
[383936002,1757184632549,-702.847665,0.00013168,2]
[383936003,1757184632560,-300.0,0.00013301,2]
[383936004,1757184632569,-173.0,0.00013301,2]
[383936006,1757184632579,-1200.0,0.00013301,2]
[383936008,1757184632588,-327.0,0.00013302,2]
[383936010,1757184632598,-327.0,0.00013302,2]
[383936012,1757184632608,-327.0,0.00013302,2]
[383936014,1757184632617,-327.0,0.00013302,2]
[383936016,1757184632627,-420.99152765,0.00013302,2]
[383936018,1757184632636,-50000.0,0.00013327,2]
[383936019,1757184632646,-161.0,0.00013327,2]
[383936020,1757184632655,-161.39925369,0.00013327,2]
[383936021,1757184632664,-500.0,0.00013341,2]
[383936022,1757184632674,-154.16722085,0.00013341,2]
[383936023,1757184632683,-161.0,0.00013342,2]
[383936025,1757184632693,-166.0,0.00013342,2]
[383936026,1757184632702,-161.0,0.00013342,2]
[383936027,1757184632712,-166.0,0.00013342,2]
[383936028,1757184632725,-161.0,0.00013342,2]
[383936029,1757184632735,-161.0,0.00013342,2]
[383936030,1757184632744,-161.0,0.00013342,2]
[383936031,1757184632754,-156.51496579,0.00013342,2]
[383936032,1757184632763,-288.35200594,0.00013342,2]
[383936033,1757184632773,-327.0,0.00013342,2]
[383936034,1757184632959,-327.0,0.00013342,2]
[383936035,1757184632970,-327.0,0.00013342,2]
[383936036,1757184632979,-327.0,0.00013342,2]
[383936037,1757184632989,-327.0,0.00013342,2]
[383936038,1757184632999,-327.0,0.00013342,2]
[383936039,1757184633009,-327.0,0.00013342,2]
[383936040,1757184633019,-110.2295494,0.00013342,2]
[383936041,1757184633042,-216.7704506,0.00013342,2]
[383936042,1757184633052,-327.0,0.00013342,2]
[383936043,1757184633062,-327.0,0.00013342,2]
[383936044,1757184633072,-327.0,0.00013342,2]
[383936045,1757184633081,-327.0,0.00013342,2]
[383936046,1757184633092,-327.0,0.00013342,2]
[383936047,1757184633102,-327.0,0.00013342,2]
[383936048,1757184633111,-327.0,0.00013342,2]
[383936049,1757184633121,-327.0,0.00013342,2]
[383936050,1757184633130,-327.0,0.00013342,2]
[383936051,1757184633141,-327.0,0.00013342,2]
[383936052,1757184633150,-327.0,0.00013342,2]
[383936053,1757184633160,-327.0,0.00013361,2]
[383936054,1757184633170,-138.22954939,0.00013361,2]
[383936055,1757184633183,-188.77045061,0.00013361,2]
[383936056,1757184633192,-327.0,0.00013361,2]
[383936058,1757184633202,-327.0,0.00013361,2]
[383936060,1757184633211,-327.0,0.00013361,2]
[383936062,1757184633221,-327.0,0.00013361,2]
[383936064,1757184633230,-327.0,0.00013361,2]
[383936066,1757184633240,-327.0,0.00013361,2]
[383936068,1757184633249,-327.0,0.00013361,2]
[383936070,1757184633259,-327.0,0.00013361,2]
[383936072,1757184633268,-327.0,0.00013361,2]
[383936073,1757184633278,-327.0,0.00013361,2]
[383936074,1757184633287,-327.0,0.00013361,2]
[383936075,1757184633297,-327.0,0.00013361,2]
[383936076,1757184633307,-327.0,0.00013361,2]
[383936077,1757184633317,-327.0,0.00013361,2]
[383936078,1757184633327,-327.0,0.00013361,2]
[383936079,1757184633336,-327.0,0.00013361,2]
[383936080,1757184633346,-327.0,0.00013361,2]
[383936081,1757184633355,-327.0,0.00013361,2]
[383936082,1757184633365,-327.0,0.00013361,2]
[383936083,1757184633374,-327.0,0.00013361,2]
[383936084,1757184633383,-313.15206038,0.00013361,2]
[383936085,1757184633393,-800.0,0.00013436,2]
[383936086,1757184633404,-151.0,0.0001348,2]
[383936087,1757184633414,-1454.03588668,0.0001348,2]
[383936088,1757184633423,-168.3888056,0.0001348,2]
[383936089,1757184633433,-151.0,0.0001348,2]
[383936090,1757184633443,-151.0,0.0001348,2]
[383936091,1757184633452,-249.56709565,0.0001348,2]
[383936092,1757184633462,-500.0,0.00013487,2]
[383936093,1757184633471,-500.0,0.00013487,2]
[383936094,1757184633481,-500.0,0.00013487,2]
[383936095,1757184633491,-500.0,0.00013487,2]
[383936096,1757184633501,-352.19132674,0.00013487,2]
[383936097,1757184633510,-500.0,0.00013487,2]
[383936098,1757184633520,-500.0,0.00013487,2]
[383936099,1757184633530,-500.0,0.00013487,2]
[383936100,1757184633540,-500.0,0.00013487,2]
[383936101,1757184633550,-500.0,0.00013487,2]
[383936102,1757184633559,-133684.55620992,0.00013488,2]
[383936103,1757184633569,-497.59627167,0.00013496,2]
[383936104,1757184633579,-160.0,0.00013587,2]
[383936105,1757184633588,-160.0,0.00013587,2]
[383936106,1757184633598,-232.99021696,0.0001359,2]
[383936107,1757184633607,-160.0,0.0001359,2]
[383936108,1757184633617,-846.58554688,0.0001359,2]
[383936109,1757184633627,-160.0,0.0001359,2]
[383936110,1757184633636,-530.56961759,0.0001359,2]
[383936111,1757184633646,-417.15472785,0.0001359,2]
[383936112,1757184633655,-203.21852024,0.0001359,2]
[383936113,1757184633665,-217.58669629,0.0001359,2]
[383936114,1757184633674,-160.0,0.0001359,2]
[383936115,1757184633684,-1368.88273088,0.00013598,2]
[383936116,1757184633694,-263.81905354,0.000136,2]
[383936117,1757184633704,-296.0,0.00013617,2]
[383936118,1757184633716,-836.0,0.00013617,2]
[383936119,1757184633727,-199.14737043,0.00013617,2]
[383936120,1757184633737,-296.0,0.00013617,2]
[383936121,1757184633747,-497.59627163,0.00013635,2]
[383936122,1757184633756,-975.0,0.00013647,2]
[383936123,1757184633766,-409.0,0.00013647,2]
[383936124,1757184633776,-634.0,0.00013647,2]
[383936125,1757184633786,-2154.0,0.00013647,2]
[383936126,1757184633795,-500.0,0.00013673,2]
[383936127,1757184633806,-500.0,0.00013673,2]
[383936128,1757184633815,-500.0,0.00013673,2]
[383936129,1757184633826,-221.92716998,0.00013673,2]
[383936130,1757184633835,-500.0,0.00013673,2]
[383936131,1757184633846,-500.0,0.00013673,2]
[383936132,1757184633855,-500.0,0.00013673,2]
[383936133,1757184633865,-500.0,0.00013673,2]
[383936134,1757184633874,-500.0,0.00013673,2]
[383936135,1757184633884,-500.0,0.00013673,2]
[383936136,1757184633894,-500.0,0.00013673,2]
[383936137,1757184633904,-356.53122652,0.00013673,2]
[383936138,1757184633913,-500.0,0.00013673,2]
[383936139,1757184633923,-500.0,0.00013673,2]
[383936140,1757184633933,-255.74,0.00013673,2]
[383936141,1757184633943,-399.53871809,0.00013698,2]
[383936142,1757184633952,-286.52868486,0.00013698,2]
[383936143,1757184633962,-480.0,0.00013698,2]
[383936144,1757184633972,-414.47149648,0.00013698,2]
[383936145,1757184633982,-420.0,0.00013698,2]
[383936146,1757184633991,-438.11780381,0.00013698,2]
[383936147,1757184634001,-452.01923232,0.00013698,2]
[383936148,1757184634011,-480.0,0.00013698,2]
[383936149,1757184634021,-515.67,0.00013698,2]
[383936150,1757184634031,-741.51,0.00013698,2]
[383936151,1757184634040,-486.660413,0.00013698,2]
[383936152,1757184634050,-480.0,0.00013698,2]
[383936153,1757184634059,-480.0,0.00013698,2]
[383936154,1757184634069,-151.0,0.00013698,2]
[383936155,1757184634078,-507.83,0.00013698,2]
[383936156,1757184634087,-480.0,0.00013698,2]
[383936157,1757184634097,-480.0,0.00013698,2]
[383936158,1757184634106,-480.0,0.00013698,2]
[383936159,1757184634116,-480.0,0.00013698,2]
[383936160,1757184634126,-291.62,0.00013698,2]
[383936161,1757184634136,-296.0,0.00013698,2]
[383936162,1757184634146,-480.0,0.00013698,2]
[383936163,1757184634156,-480.0,0.00013698,2]
[383936164,1757184634165,-152.52979437,0.00013698,2]
[383936165,1757184634175,-480.0,0.00013698,2]
[383936166,1757184634185,-480.0,0.00013698,2]
[383936167,1757184634194,-266.51965911,0.00013698,2]
[383936168,1757184634204,-480.0,0.00013698,2]
[383936169,1757184634214,-480.0,0.00013698,2]
[383936170,1757184634224,-480.0,0.00013698,2]
[383936171,1757184634234,-552.67,0.00013698,2]
[383936172,1757184634243,-480.0,0.00013698,2]
[383936173,1757184634253,-480.0,0.00013698,2]
[383936174,1757184634262,-480.0,0.00013698,2]
[383936175,1757184634272,-480.0,0.00013698,2]
[383936176,1757184634281,-436.0650664,0.00013698,2]
[383936177,1757184634292,-480.0,0.00013698,2]
[383936178,1757184634301,-480.0,0.00013698,2]
[383936179,1757184634312,-480.0,0.00013698,2]
[383936180,1757184634322,-480.0,0.00013698,2]
[383936181,1757184634331,-480.0,0.00013698,2]
[383936182,1757184634341,-480.0,0.00013698,2]
[383936183,1757184634350,-154.28379948,0.00013698,2]
[383936184,1757184634360,-480.0,0.00013698,2]
[383936185,1757184634369,-504.38854327,0.00013698,2]
[383936186,1757184634378,-480.0,0.00013698,2]
[383936187,1757184634388,-755.35,0.00013698,2]
[383936188,1757184634399,-480.0,0.00013698,2]
[383936189,1757184634408,-151.0,0.00013698,2]
[383936190,1757184634418,-480.0,0.00013698,2]
[383936191,1757184634427,-480.0,0.00013698,2]
[383936192,1757184634437,-500.0,0.00013698,2]
[383936193,1757184634447,-480.0,0.00013698,2]
[383936194,1757184634457,-480.0,0.00013698,2]
[383936195,1757184634466,-480.0,0.00013698,2]
[383936196,1757184634476,-480.0,0.00013698,2]
[383936197,1757184634486,-480.0,0.00013698,2]
[383936198,1757184634495,-480.0,0.00013698,2]
[383936199,1757184634505,-480.0,0.00013698,2]
[383936200,1757184634514,-480.0,0.00013698,2]
[383936201,1757184634524,-480.0,0.00013698,2]
[383936202,1757184634533,-480.0,0.00013698,2]
[383936203,1757184634543,-480.0,0.00013698,2]
[383936204,1757184634553,-480.0,0.00013698,2]
[383936205,1757184634563,-480.0,0.00013698,2]
[383936206,1757184634573,-480.0,0.00013698,2]
[383936207,1757184634582,-709.63,0.00013698,2]
[383936208,1757184634592,-480.0,0.00013698,2]
[383936209,1757184634602,-480.0,0.00013698,2]
[383936210,1757184634611,-480.0,0.00013698,2]
[383936211,1757184634620,-480.0,0.00013698,2]
[383936212,1757184634630,-480.0,0.00013698,2]
[383936213,1757184634640,-480.0,0.00013698,2]
[383936214,1757184634649,-487.67,0.00013698,2]
[383936215,1757184634659,-480.0,0.00013698,2]
[383936216,1757184634669,-655.23,0.00013698,2]
[383936217,1757184634678,-1510.14,0.00013698,2]
[383936218,1757184634688,-480.0,0.00013698,2]
[383936219,1757184634698,-480.0,0.00013698,2]
[383936220,1757184634710,-480.0,0.00013698,2]
[383936221,1757184634730,-480.0,0.00013698,2]
[383936222,1757184634744,-480.0,0.00013698,2]
[383936223,1757184634758,-290.3686223,0.00013698,2]
[383936224,1757184634771,-488.27,0.00013698,2]
[383936225,1757184634783,-480.0,0.00013698,2]
[383936226,1757184634794,-542.96,0.00013698,2]
[383936227,1757184634804,-480.0,0.00013698,2]
[383936228,1757184634819,-480.0,0.00013698,2]
[383936229,1757184634831,-480.0,0.00013698,2]
[383936230,1757184634843,-480.0,0.00013698,2]
[383936231,1757184634857,-480.0,0.00013698,2]
[383936232,1757184634869,-480.0,0.00013698,2]
[383936233,1757184634883,-480.0,0.00013698,2]
[383936234,1757184634896,-480.0,0.00013698,2]
[383936235,1757184634908,-624.46,0.00013698,2]
[383936236,1757184634921,-480.0,0.00013698,2]
[383936237,1757184634933,-480.0,0.00013698,2]
[383936238,1757184634947,-480.0,0.00013698,2]
[383936239,1757184634959,-480.0,0.00013698,2]
[383936240,1757184634972,-480.0,0.00013698,2]
[383936241,1757184634984,-480.0,0.00013698,2]
[383936242,1757184634996,-480.0,0.00013698,2]
[383936243,1757184635006,-480.0,0.00013698,2]
[383936244,1757184635017,-480.0,0.00013698,2]
[383936245,1757184635028,-480.0,0.00013698,2]
[383936246,1757184635041,-480.0,0.00013698,2]
[383936247,1757184635054,-480.0,0.00013698,2]
[383936248,1757184635067,-480.0,0.00013698,2]
[383936249,1757184635079,-480.0,0.00013698,2]
[383936250,1757184635092,-480.0,0.00013698,2]
[383936251,1757184635103,-480.0,0.00013698,2]
[383936252,1757184635114,-3150.07,0.00013698,2]
[383936253,1757184635127,-480.0,0.00013698,2]
[383936254,1757184635139,-480.0,0.00013698,2]
[383936255,1757184635152,-480.0,0.00013698,2]
[383936256,1757184635165,-480.0,0.00013698,2]
[383936257,1757184635177,-480.0,0.00013698,2]
[383936258,1757184635190,-480.0,0.00013698,2]
[383936259,1757184635202,-1016.8,0.00013698,2]
[383936260,1757184635213,-482.76293825,0.00013698,2]
[383936261,1757184635227,-480.0,0.00013698,2]
[383936262,1757184635240,-480.0,0.00013698,2]
[383936263,1757184635252,-231.43894285,0.00013698,2]
[383936271,1757184638553,-251.72955342,0.00013227,2]
[383936272,1757184638566,-1335.51470334,0.00013227,2]
[383936287,1757184640587,-521.29873824,0.00013227,2]
[383936288,1757184640599,-249.97865793,0.00013698,2]
[383936289,1757184640610,-480.0,0.00013698,2]
[383936290,1757184640621,-480.0,0.00013698,2]
[383936291,1757184640632,-751.91,0.00013698,2]
[383936292,1757184640643,-229.31260383,0.00013698,2]
[383936293,1757184640657,-250.68739617,0.00013698,2]
[383936294,1757184640668,-51.33046266,0.00013698,2]
[383936302,1757184643666,-700.000001,0.00013698,2]
[383936303,1757184643825,-216.25953634,0.00013698,2]
[383936305,1757184643835,-480.0,0.00013698,2]
[383936308,1757184643845,-480.0,0.00013698,2]
[383936309,1757184643855,-480.0,0.00013698,2]
[383936312,1757184643866,-815.45,0.00013698,2]
[383936313,1757184643875,-480.0,0.00013698,2]
[383936314,1757184643884,-151.0,0.00013698,2]
[383936315,1757184643895,-151.0,0.00013698,2]
[383936317,1757184643904,-480.0,0.00013698,2]
[383936319,1757184643914,-480.0,0.00013698,2]
[383936321,1757184643924,-174.311152,0.00013698,2]
[383936323,1757184643941,-480.0,0.00013698,2]
[383936325,1757184643951,-480.0,0.00013698,2]
[383936327,1757184643961,-480.64942555,0.00013698,2]
[383936329,1757184643970,-480.0,0.00013698,2]
[383936331,1757184643980,-480.0,0.00013698,2]
[383936332,1757184643990,-480.0,0.00013698,2]
[383936333,1757184643999,-920.37,0.00013698,2]
[383936334,1757184644010,-1071.82,0.00013698,2]
[383936335,1757184644019,-480.0,0.00013698,2]
[383936336,1757184644029,-480.0,0.00013698,2]
[383936337,1757184644039,-480.0,0.00013698,2]
[383936338,1757184644048,-994.6,0.00013698,2]
[383936339,1757184644058,-480.0,0.00013698,2]
[383936340,1757184644067,-480.0,0.00013698,2]
[383936341,1757184644077,-480.0,0.00013698,2]